[Event "Late-Titled-Tuesday-Blitz-January-16-2024"]
[Site "Chess.com"]
[Date "2024.01.16"]
[Round "6"]
[White "Rud_Makarian"]
[Black "AntonSmirnov"]
[Result "0-1"]
[WhiteElo "3049"]
[BlackElo "2957"]
[TimeControl "180+1"]
[EndTime "15:04:12 PST"]
[Termination "AntonSmirnov won on time"]

1. c4 {[%clk 0:03:00.9]} 1... c6 {[%clk 0:02:57.7]} 2. d4 {[%clk 0:03:00]} 2...
d5 {[%clk 0:02:57.9]} 3. Nf3 {[%clk 0:03:00.9]} 3... Nf6 {[%clk 0:02:57.9]} 4.
Nc3 {[%clk 0:03:01.6]} 4... dxc4 {[%clk 0:02:57.8]} 5. g3 {[%clk 0:03:01.1]}
5... b5 {[%clk 0:02:52.3]} 6. Bg2 {[%clk 0:03:01]} 6... e6 {[%clk 0:02:51.9]} 7.
Ne5 {[%clk 0:03:01.5]} 7... Qb6 {[%clk 0:02:50.7]} 8. O-O {[%clk 0:02:58.4]}
8... Bb7 {[%clk 0:02:49.6]} 9. b3 {[%clk 0:02:52.1]} 9... Nbd7 {[%clk
0:02:45.3]} 10. bxc4 {[%clk 0:02:45.5]} 10... Nxe5 {[%clk 0:02:45.5]} 11. dxe5
{[%clk 0:02:45.6]} 11... Nd7 {[%clk 0:02:44.8]} 12. Be3 {[%clk 0:02:22.9]} 12...
Qa6 {[%clk 0:02:34.3]} 13. cxb5 {[%clk 0:01:57.7]} 13... cxb5 {[%clk 0:02:33.7]}
14. Nxb5 {[%clk 0:01:58.4]} 14... Qxb5 {[%clk 0:02:21.8]} 15. Rb1 {[%clk
0:01:56.6]} 15... Bb4 {[%clk 0:02:21.9]} 16. a4 {[%clk 0:01:45.9]} 16... Qa6
{[%clk 0:02:12.4]} 17. Rxb4 {[%clk 0:01:46]} 17... Bxg2 {[%clk 0:02:12.3]} 18.
Kxg2 {[%clk 0:01:46.6]} 18... Qc6+ {[%clk 0:02:11.5]} 19. f3 {[%clk 0:01:45.6]}
19... O-O {[%clk 0:02:05.7]} 20. Qd6 {[%clk 0:01:43.5]} 20... Qc3 {[%clk
0:01:44.1]} 21. Bd4 {[%clk 0:01:20.4]} 21... Qc8 {[%clk 0:01:37.2]} 22. Rbb1
{[%clk 0:01:12.4]} 22... Nb6 {[%clk 0:01:34.7]} 23. a5 {[%clk 0:00:56.2]} 23...
Nc4 {[%clk 0:01:13.3]} 24. Qb4 {[%clk 0:00:55.3]} 24... Rd8 {[%clk 0:01:13.3]}
25. Rfd1 {[%clk 0:00:33.4]} 25... Qa6 {[%clk 0:01:12.9]} 26. Bxa7 {[%clk
0:00:27.3]} 26... Rxd1 {[%clk 0:01:02.5]} 27. Rxd1 {[%clk 0:00:28.2]} 27... Ne3+
{[%clk 0:01:02.8]} 28. Bxe3 {[%clk 0:00:23.7]} 28... Qxe2+ {[%clk 0:01:02.9]}
29. Bf2 {[%clk 0:00:23.2]} 29... Qxd1 {[%clk 0:01:03.2]} 30. a6 {[%clk
0:00:19.8]} 30... Qd5 {[%clk 0:00:59.7]} 31. a7 {[%clk 0:00:16.6]} 31... Qxe5
{[%clk 0:00:57.9]} 32. Qb7 {[%clk 0:00:15.7]} 32... Qd5 {[%clk 0:00:58.2]} 33.
Qb8+ {[%clk 0:00:13.3]} 33... Qd8 {[%clk 0:00:58.4]} 34. Qb7 {[%clk 0:00:13.1]}
34... Qc8 {[%clk 0:00:57.4]} 35. Qb6 {[%clk 0:00:12.4]} 35... h5 {[%clk
0:00:55.3]} 36. h4 {[%clk 0:00:12.7]} 36... Qd8 {[%clk 0:00:40]} 37. Qb7 {[%clk
0:00:12.9]} 37... Qd5 {[%clk 0:00:39.6]} 38. Qb8+ {[%clk 0:00:13.2]} 38... Kh7
{[%clk 0:00:39.6]} 39. Qc7 {[%clk 0:00:09.1]} 39... e5 {[%clk 0:00:36.6]} 40.
Qc2+ {[%clk 0:00:08.1]} 40... g6 {[%clk 0:00:35.1]} 41. Qc7 {[%clk 0:00:05.2]}
41... e4 {[%clk 0:00:35.3]} 42. fxe4 {[%clk 0:00:05.6]} 42... Qxe4+ {[%clk
0:00:35.6]} 43. Kh2 {[%clk 0:00:05.7]} 43... Qf3 {[%clk 0:00:31.4]} 44. Kg1
{[%clk 0:00:02.4]} 44... Re8 {[%clk 0:00:31.8]} 45. Qb8 {[%clk 0:00:02.3]} 45...
Re2 {[%clk 0:00:29.9]} 46. Qb6 {[%clk 0:00:02.1]} 46... Ra2 {[%clk 0:00:28.7]}
47. Qd4 {[%clk 0:00:01.7]} 47... Rc2 {[%clk 0:00:25.8]} 0-1

[Event "Late-Titled-Tuesday-Blitz-January-16-2024"]
[Site "Chess.com"]
[Date "2024.01.16"]
[Round "6"]
[White "HajiyevKanan"]
[Black "orestn"]
[Result "0-1"]
[WhiteElo "2564"]
[BlackElo "2449"]
[TimeControl "180+1"]
[EndTime "15:04:12 PST"]
[Termination "orestn won by checkmate"]

1. d4 {[%clk 0:03:00.9]} 1... d5 {[%clk 0:02:56.7]} 2. c4 {[%clk 0:03:00.7]}
2... e6 {[%clk 0:02:56.9]} 3. cxd5 {[%clk 0:03:01.6]} 3... exd5 {[%clk
0:02:56.6]} 4. Nc3 {[%clk 0:03:02.5]} 4... c5 {[%clk 0:02:56.4]} 5. Nf3 {[%clk
0:03:00.9]} 5... Nc6 {[%clk 0:02:55.9]} 6. Bg5 {[%clk 0:02:58.9]} 6... f6 {[%clk
0:02:55.2]} 7. Bf4 {[%clk 0:02:58.8]} 7... g5 {[%clk 0:02:54.9]} 8. Be3 {[%clk
0:02:58]} 8... g4 {[%clk 0:02:44.2]} 9. Nh4 {[%clk 0:02:56.1]} 9... f5 {[%clk
0:02:29.1]} 10. g3 {[%clk 0:02:54.8]} 10... Bg7 {[%clk 0:02:25.9]} 11. Bf4
{[%clk 0:01:54]} 11... cxd4 {[%clk 0:02:23.2]} 12. Nb1 {[%clk 0:01:39]} 12...
Nge7 {[%clk 0:02:12.1]} 13. Bg2 {[%clk 0:01:38.4]} 13... Ng6 {[%clk 0:01:58.8]}
14. Nxg6 {[%clk 0:01:35.9]} 14... hxg6 {[%clk 0:01:58.3]} 15. O-O {[%clk
0:01:35.2]} 15... O-O {[%clk 0:01:57.4]} 16. Na3 {[%clk 0:01:29.2]} 16... a6
{[%clk 0:01:50.9]} 17. Qd2 {[%clk 0:01:24.1]} 17... Be6 {[%clk 0:01:48.3]} 18.
Rac1 {[%clk 0:01:21.5]} 18... Rc8 {[%clk 0:01:40.9]} 19. Rfd1 {[%clk 0:01:21.4]}
19... Re8 {[%clk 0:01:36.4]} 20. Nc2 {[%clk 0:01:19.7]} 20... Qb6 {[%clk
0:01:27.3]} 21. Ne1 {[%clk 0:01:18.1]} 21... Bf7 {[%clk 0:01:14]} 22. Nd3 {[%clk
0:01:14.7]} 22... Na5 {[%clk 0:01:08]} 23. b3 {[%clk 0:01:14.7]} 23... Nc6
{[%clk 0:01:07.7]} 24. Rc5 {[%clk 0:01:01.3]} 24... Bf8 {[%clk 0:01:04.3]} 25.
Rxd5 {[%clk 0:00:49.9]} 25... Bxd5 {[%clk 0:01:00.6]} 26. Bxd5+ {[%clk
0:00:50.8]} 26... Kg7 {[%clk 0:01:00.6]} 27. Bh6+ {[%clk 0:00:48.1]} 27... Kh7
{[%clk 0:01:00.2]} 28. Bxf8 {[%clk 0:00:43.1]} 28... Rxf8 {[%clk 0:01:00.1]} 29.
Qg5 {[%clk 0:00:40.2]} 29... Qd8 {[%clk 0:00:59.4]} 30. Qxd8 {[%clk 0:00:30.9]}
30... Rfxd8 {[%clk 0:00:59.1]} 31. Bg2 {[%clk 0:00:28.6]} 31... a5 {[%clk
0:00:42.8]} 32. Nf4 {[%clk 0:00:28.7]} 32... Nb4 {[%clk 0:00:41.1]} 33. Bxb7
{[%clk 0:00:27]} 33... Rc2 {[%clk 0:00:39.5]} 34. a3 {[%clk 0:00:25.6]} 34...
Na2 {[%clk 0:00:36.8]} 35. Kf1 {[%clk 0:00:21.6]} 35... Nc3 {[%clk 0:00:34.5]}
36. Re1 {[%clk 0:00:16.3]} 36... Rb2 {[%clk 0:00:28.7]} 37. b4 {[%clk
0:00:13.3]} 37... a4 {[%clk 0:00:25]} 38. b5 {[%clk 0:00:08.3]} 38... Rxb5
{[%clk 0:00:22.2]} 39. Ba6 {[%clk 0:00:09]} 39... Rb3 {[%clk 0:00:20.9]} 40. Ra1
{[%clk 0:00:09.3]} 40... Rb1+ {[%clk 0:00:20.3]} 41. Rxb1 {[%clk 0:00:09.3]}
41... Nxb1 {[%clk 0:00:21.1]} 42. Bb5 {[%clk 0:00:09.3]} 42... Ra8 {[%clk
0:00:19.4]} 43. Ne6 {[%clk 0:00:07.9]} 43... Nxa3 {[%clk 0:00:17.6]} 44. Bc6
{[%clk 0:00:08.6]} 44... Ra5 {[%clk 0:00:16.2]} 45. Nxd4 {[%clk 0:00:08.6]}
45... Nc4 {[%clk 0:00:16.1]} 46. Nc2 {[%clk 0:00:03.6]} 46... a3 {[%clk
0:00:15.8]} 47. Ke1 {[%clk 0:00:02]} 47... a2 {[%clk 0:00:15.9]} 48. Bd7 {[%clk
0:00:02.2]} 48... a1=Q+ {[%clk 0:00:15.4]} 49. Nxa1 {[%clk 0:00:02.5]} 49...
Rxa1# {[%clk 0:00:15.7]} 0-1

[Event "Late-Titled-Tuesday-Blitz-January-16-2024"]
[Site "Chess.com"]
[Date "2024.01.16"]
[Round "6"]
[White "ninguno46"]
[Black "DarkAlekhine"]
[Result "1-0"]
[WhiteElo "2569"]
[BlackElo "2713"]
[TimeControl "180+1"]
[EndTime "15:04:15 PST"]
[Termination "ninguno46 won on time"]

1. d4 {[%clk 0:02:57.9]} 1... Nf6 {[%clk 0:02:57.8]} 2. c4 {[%clk 0:02:57.7]}
2... g6 {[%clk 0:02:57.7]} 3. Nc3 {[%clk 0:02:57.8]} 3... Bg7 {[%clk 0:02:57.1]}
4. Bg5 {[%clk 0:02:55.6]} 4... O-O {[%clk 0:02:46.9]} 5. e3 {[%clk 0:02:55.7]}
5... c5 {[%clk 0:02:43.9]} 6. d5 {[%clk 0:02:55.3]} 6... h6 {[%clk 0:02:37.7]}
7. Bh4 {[%clk 0:02:54.7]} 7... Qb6 {[%clk 0:02:36.9]} 8. Rb1 {[%clk 0:02:50.7]}
8... d6 {[%clk 0:02:35.2]} 9. Bd3 {[%clk 0:02:41.8]} 9... e5 {[%clk 0:02:24.5]}
10. dxe6 {[%clk 0:02:41.2]} 10... Bxe6 {[%clk 0:02:23.8]} 11. Nge2 {[%clk
0:02:40.2]} 11... Nc6 {[%clk 0:02:01.5]} 12. O-O {[%clk 0:02:24.7]} 12... Ne5
{[%clk 0:01:59.4]} 13. b3 {[%clk 0:02:23.2]} 13... g5 {[%clk 0:01:39.4]} 14. Bg3
{[%clk 0:02:22.6]} 14... Rad8 {[%clk 0:01:38.3]} 15. Bc2 {[%clk 0:02:11]} 15...
Nh5 {[%clk 0:01:36.2]} 16. f4 {[%clk 0:02:05]} 16... Ng4 {[%clk 0:01:25.7]} 17.
Qd3 {[%clk 0:02:04.4]} 17... f5 {[%clk 0:01:25.9]} 18. fxg5 {[%clk 0:01:57.3]}
18... hxg5 {[%clk 0:01:23]} 19. Nd5 {[%clk 0:01:48.6]} 19... Ne5 {[%clk
0:01:07.5]} 20. Bxe5 {[%clk 0:01:46.3]} 20... dxe5 {[%clk 0:01:08]} 21. Nxb6
{[%clk 0:01:28.8]} 21... Rxd3 {[%clk 0:01:06.5]} 22. Bxd3 {[%clk 0:01:28.7]}
22... axb6 {[%clk 0:01:06.9]} 23. g4 {[%clk 0:01:27]} 23... e4 {[%clk
0:00:49.3]} 24. Bc2 {[%clk 0:01:25]} 24... Nf6 {[%clk 0:00:33.3]} 25. gxf5
{[%clk 0:01:23.5]} 25... Bd7 {[%clk 0:00:33.4]} 26. Rbd1 {[%clk 0:01:19.5]}
26... Bc6 {[%clk 0:00:32.6]} 27. h3 {[%clk 0:01:17.7]} 27... b5 {[%clk
0:00:31.9]} 28. Rd2 {[%clk 0:01:02.8]} 28... Ra8 {[%clk 0:00:27.4]} 29. Bb1
{[%clk 0:00:56.2]} 29... bxc4 {[%clk 0:00:27.2]} 30. bxc4 {[%clk 0:00:55.9]}
30... Ra3 {[%clk 0:00:27.9]} 31. Kf2 {[%clk 0:00:54.4]} 31... Kf7 {[%clk
0:00:22.9]} 32. Nc1 {[%clk 0:00:50.9]} 32... g4 {[%clk 0:00:19.8]} 33. Nb3
{[%clk 0:00:46.3]} 33... gxh3 {[%clk 0:00:19]} 34. Kg3 {[%clk 0:00:42.7]} 34...
Ra8 {[%clk 0:00:16.6]} 35. Kxh3 {[%clk 0:00:42.1]} 35... Rh8+ {[%clk 0:00:09.3]}
36. Kg3 {[%clk 0:00:36.3]} 36... Nd7 {[%clk 0:00:08.8]} 37. f6 {[%clk
0:00:23.1]} 37... Bxf6 {[%clk 0:00:09.1]} 38. Bxe4 {[%clk 0:00:19.8]} 38... Bxe4
{[%clk 0:00:06.1]} 39. Rxd7+ {[%clk 0:00:18.9]} 39... Ke8 {[%clk 0:00:01.8]} 40.
Rxf6 {[%clk 0:00:12.1]} 1-0

[Event "Late-Titled-Tuesday-Blitz-January-16-2024"]
[Site "Chess.com"]
[Date "2024.01.16"]
[Round "6"]
[White "AradNazari"]
[Black "Piotrek1979"]
[Result "0-1"]
[WhiteElo "2619"]
[BlackElo "2432"]
[TimeControl "180+1"]
[EndTime "15:04:15 PST"]
[Termination "Piotrek1979 won by checkmate"]

1. g4 {[%clk 0:03:00.9]} 1... e5 {[%clk 0:02:57.6]} 2. e4 {[%clk 0:03:00.1]}
2... Nf6 {[%clk 0:02:53.9]} 3. Nc3 {[%clk 0:02:59.3]} 3... d5 {[%clk 0:02:53.2]}
4. Nxd5 {[%clk 0:02:30.3]} 4... Nxe4 {[%clk 0:02:31]} 5. Ne3 {[%clk 0:02:25.3]}
5... Nc6 {[%clk 0:02:07.1]} 6. Bg2 {[%clk 0:02:14.9]} 6... Nc5 {[%clk
0:01:48.5]} 7. d3 {[%clk 0:02:02.9]} 7... Be6 {[%clk 0:01:48]} 8. Nf3 {[%clk
0:01:56.9]} 8... Be7 {[%clk 0:01:43.4]} 9. Bd2 {[%clk 0:01:51.7]} 9... a5 {[%clk
0:01:38.2]} 10. Qe2 {[%clk 0:01:50.7]} 10... O-O {[%clk 0:01:36.5]} 11. h3
{[%clk 0:01:42.9]} 11... Re8 {[%clk 0:01:34.7]} 12. O-O {[%clk 0:01:41.6]} 12...
Nd4 {[%clk 0:01:15.1]} 13. Qd1 {[%clk 0:01:40.6]} 13... Bf6 {[%clk 0:01:13.4]}
14. Re1 {[%clk 0:01:32.2]} 14... h5 {[%clk 0:01:10.9]} 15. Nxd4 {[%clk
0:01:25.5]} 15... exd4 {[%clk 0:01:10.5]} 16. Nf5 {[%clk 0:01:24.3]} 16... Qd7
{[%clk 0:01:04.7]} 17. Qf3 {[%clk 0:01:19.9]} 17... hxg4 {[%clk 0:01:00.7]} 18.
hxg4 {[%clk 0:01:19.1]} 18... Bxf5 {[%clk 0:01:00.4]} 19. Qxf5 {[%clk
0:01:14.1]} 19... Qxf5 {[%clk 0:01:00.4]} 20. gxf5 {[%clk 0:01:15]} 20... c6
{[%clk 0:01:00.7]} 21. b3 {[%clk 0:01:05.9]} 21... a4 {[%clk 0:00:57.2]} 22. Bb4
{[%clk 0:00:50.5]} 22... Na6 {[%clk 0:00:54.6]} 23. Bd6 {[%clk 0:00:50.5]} 23...
Rad8 {[%clk 0:00:43.3]} 24. Rxe8+ {[%clk 0:00:36.8]} 24... Rxe8 {[%clk
0:00:44.2]} 25. bxa4 {[%clk 0:00:37.5]} 25... Re2 {[%clk 0:00:43.3]} 26. Rb1
{[%clk 0:00:33.8]} 26... Rxc2 {[%clk 0:00:32.1]} 27. Rxb7 {[%clk 0:00:33.9]}
27... Nc5 {[%clk 0:00:32.8]} 28. Rb8+ {[%clk 0:00:11.7]} 28... Kh7 {[%clk
0:00:31.9]} 29. Bxc5 {[%clk 0:00:12.3]} 29... Rxc5 {[%clk 0:00:31.3]} 30. Rc8
{[%clk 0:00:06.5]} 30... Rc1+ {[%clk 0:00:18.8]} 31. Kh2 {[%clk 0:00:06.3]}
31... Rc2 {[%clk 0:00:19.4]} 32. Bxc6 {[%clk 0:00:04.3]} 32... Rxf2+ {[%clk
0:00:19]} 33. Kg3 {[%clk 0:00:04.9]} 33... Rxa2 {[%clk 0:00:19.2]} 34. Ra8
{[%clk 0:00:04.8]} 34... Kh6 {[%clk 0:00:18.8]} 35. Kg4 {[%clk 0:00:04.5]} 35...
g6 {[%clk 0:00:10.8]} 36. a5 {[%clk 0:00:05]} 36... Ra3 {[%clk 0:00:10]} 37. a6
{[%clk 0:00:04.1]} 37... Rxd3 {[%clk 0:00:04.3]} 38. fxg6 {[%clk 0:00:04.7]}
38... fxg6 {[%clk 0:00:03.9]} 39. Rf8 {[%clk 0:00:05.4]} 39... Be5 {[%clk
0:00:04.2]} 40. a7 {[%clk 0:00:04.7]} 40... Rg3+ {[%clk 0:00:04]} 41. Kh4 {[%clk
0:00:05.4]} 41... g5# {[%clk 0:00:04.7]} 0-1

[Event "Late-Titled-Tuesday-Blitz-January-16-2024"]
[Site "Chess.com"]
[Date "2024.01.16"]
[Round "6"]
[White "guillembaches"]
[Black "KNVB"]
[Result "0-1"]
[WhiteElo "2535"]
[BlackElo "2699"]
[TimeControl "180+1"]
[EndTime "15:04:20 PST"]
[Termination "KNVB won on time"]

1. d4 {[%clk 0:03:00.9]} 1... e5 {[%clk 0:02:51.4]} 2. e3 {[%clk 0:03:00.7]}
2... Nc6 {[%clk 0:02:48.6]} 3. Nf3 {[%clk 0:02:57.4]} 3... d6 {[%clk 0:02:48]}
4. Be2 {[%clk 0:02:52.6]} 4... g6 {[%clk 0:02:27.8]} 5. c4 {[%clk 0:02:45.5]}
5... Bg7 {[%clk 0:02:27.5]} 6. Nc3 {[%clk 0:02:45.5]} 6... Nf6 {[%clk
0:02:27.1]} 7. b3 {[%clk 0:02:37.3]} 7... exd4 {[%clk 0:02:24.6]} 8. Nxd4 {[%clk
0:02:34.1]} 8... Nxd4 {[%clk 0:02:24.7]} 9. Qxd4 {[%clk 0:02:31.5]} 9... O-O
{[%clk 0:02:25.2]} 10. Bb2 {[%clk 0:02:31.3]} 10... Re8 {[%clk 0:02:10.5]} 11.
Qd2 {[%clk 0:02:25.4]} 11... Bf5 {[%clk 0:02:05.5]} 12. O-O {[%clk 0:02:23]}
12... Ne4 {[%clk 0:02:05.6]} 13. Nxe4 {[%clk 0:02:21.8]} 13... Bxe4 {[%clk
0:02:06.5]} 14. Bxg7 {[%clk 0:02:17.7]} 14... Kxg7 {[%clk 0:02:07.4]} 15. f3
{[%clk 0:02:06.8]} 15... Bc6 {[%clk 0:02:05.7]} 16. e4 {[%clk 0:02:03.6]} 16...
Qf6 {[%clk 0:02:05.3]} 17. Rad1 {[%clk 0:02:01.7]} 17... a5 {[%clk 0:02:05.1]}
18. a3 {[%clk 0:01:59.2]} 18... Qe5 {[%clk 0:02:02.9]} 19. Rfe1 {[%clk
0:01:53.8]} 19... Qc5+ {[%clk 0:02:01.8]} 20. Qd4+ {[%clk 0:01:49.5]} 20...
Qxd4+ {[%clk 0:02:00.4]} 21. Rxd4 {[%clk 0:01:50]} 21... Re5 {[%clk 0:01:56.8]}
22. Kf2 {[%clk 0:01:43.8]} 22... Rae8 {[%clk 0:01:54.4]} 23. b4 {[%clk
0:01:31.2]} 23... b6 {[%clk 0:01:53.1]} 24. Rdd1 {[%clk 0:01:20.1]} 24... g5
{[%clk 0:01:26.3]} 25. Bd3 {[%clk 0:01:13.3]} 25... h5 {[%clk 0:01:26.4]} 26. h3
{[%clk 0:01:07.7]} 26... h4 {[%clk 0:01:16.4]} 27. Bc2 {[%clk 0:01:00.2]} 27...
Bd7 {[%clk 0:00:30.3]} 28. Bd3 {[%clk 0:00:57]} 28... f5 {[%clk 0:00:27.5]} 29.
exf5 {[%clk 0:00:49.8]} 29... Rxe1 {[%clk 0:00:22.4]} 30. Rxe1 {[%clk
0:00:49.9]} 30... Rxe1 {[%clk 0:00:23.3]} 31. Kxe1 {[%clk 0:00:49.8]} 31... axb4
{[%clk 0:00:18.4]} 32. axb4 {[%clk 0:00:49.4]} 32... Kf6 {[%clk 0:00:06.6]} 33.
Kd2 {[%clk 0:00:49.4]} 33... Bxf5 {[%clk 0:00:04]} 34. Be2 {[%clk 0:00:47.6]}
34... c5 {[%clk 0:00:02.7]} 35. bxc5 {[%clk 0:00:46.4]} 35... bxc5 {[%clk
0:00:03.1]} 36. Ke3 {[%clk 0:00:44.2]} 36... Ke5 {[%clk 0:00:03.6]} 37. Bf1
{[%clk 0:00:37.7]} 37... Be6 {[%clk 0:00:04.1]} 38. Be2 {[%clk 0:00:35.5]} 38...
Bf7 {[%clk 0:00:04.6]} 39. Bf1 {[%clk 0:00:35.4]} 39... Be8 {[%clk 0:00:05.3]}
40. Be2 {[%clk 0:00:35.6]} 40... Bd7 {[%clk 0:00:06]} 41. Bf1 {[%clk 0:00:35.7]}
41... Bc6 {[%clk 0:00:06.7]} 42. Be2 {[%clk 0:00:35.8]} 42... Bb7 {[%clk
0:00:07.5]} 43. Bf1 {[%clk 0:00:36.1]} 43... Ba6 {[%clk 0:00:08.2]} 44. Be2
{[%clk 0:00:13.2]} 44... d5 {[%clk 0:00:08.5]} 0-1

[Event "Late-Titled-Tuesday-Blitz-January-16-2024"]
[Site "Chess.com"]
[Date "2024.01.16"]
[Round "6"]
[White "GulamaliRises"]
[Black "GrotBchess"]
[Result "1-0"]
[WhiteElo "2622"]
[BlackElo "2331"]
[TimeControl "180+1"]
[EndTime "15:04:20 PST"]
[Termination "GulamaliRises won by resignation"]

1. e4 {[%clk 0:02:48.2]} 1... c5 {[%clk 0:02:58.1]} 2. d4 {[%clk 0:02:47.5]}
2... cxd4 {[%clk 0:02:57.4]} 3. Nf3 {[%clk 0:02:48.2]} 3... e6 {[%clk
0:02:53.3]} 4. Nxd4 {[%clk 0:02:48.7]} 4... Nc6 {[%clk 0:02:53.3]} 5. Nc3 {[%clk
0:02:47.8]} 5... Qc7 {[%clk 0:02:52.9]} 6. Ndb5 {[%clk 0:02:46.4]} 6... Qb8
{[%clk 0:02:50.2]} 7. f4 {[%clk 0:02:46.7]} 7... a6 {[%clk 0:02:46.7]} 8. Nd4
{[%clk 0:02:47.1]} 8... d6 {[%clk 0:02:42.5]} 9. Nxc6 {[%clk 0:02:39.3]} 9...
bxc6 {[%clk 0:02:42]} 10. Bd3 {[%clk 0:02:40.2]} 10... Nf6 {[%clk 0:02:34.4]}
11. O-O {[%clk 0:02:33.3]} 11... d5 {[%clk 0:02:34.5]} 12. e5 {[%clk 0:02:21.7]}
12... Nd7 {[%clk 0:02:33.6]} 13. Na4 {[%clk 0:01:57]} 13... Nc5 {[%clk
0:02:29.2]} 14. Nxc5 {[%clk 0:01:51.4]} 14... Bxc5+ {[%clk 0:02:30.1]} 15. Kh1
{[%clk 0:01:51.4]} 15... Qc7 {[%clk 0:02:28.1]} 16. Qg4 {[%clk 0:01:42.4]} 16...
g6 {[%clk 0:02:26.7]} 17. Qh4 {[%clk 0:01:35.9]} 17... Be7 {[%clk 0:02:25.5]}
18. Qf2 {[%clk 0:01:33]} 18... c5 {[%clk 0:02:22.2]} 19. c4 {[%clk 0:01:33.2]}
19... d4 {[%clk 0:02:19.9]} 20. b4 {[%clk 0:01:17.9]} 20... Bb7 {[%clk
0:02:16.2]} 21. Bb2 {[%clk 0:01:05.8]} 21... Rd8 {[%clk 0:02:12.4]} 22. b5
{[%clk 0:00:52.5]} 22... axb5 {[%clk 0:01:47.1]} 23. cxb5 {[%clk 0:00:53.4]}
23... c4 {[%clk 0:01:46.2]} 24. Bxd4 {[%clk 0:00:53.7]} 24... cxd3 {[%clk
0:01:45.6]} 25. Bb6 {[%clk 0:00:53.8]} 25... Qc4 {[%clk 0:01:32.1]} 26. Bxd8
{[%clk 0:00:51.1]} 26... Bxd8 {[%clk 0:01:31.1]} 27. a4 {[%clk 0:00:36.7]} 27...
O-O {[%clk 0:01:30]} 28. Rfc1 {[%clk 0:00:36.8]} 28... Qd5 {[%clk 0:01:29.2]}
29. Rc5 {[%clk 0:00:36.6]} 29... Qe4 {[%clk 0:01:19.5]} 30. a5 {[%clk
0:00:36.8]} 30... Bh4 {[%clk 0:01:17.8]} 31. Qd2 {[%clk 0:00:32.2]} 31... Qd4
{[%clk 0:01:05]} 32. Rc3 {[%clk 0:00:25.7]} 32... Be4 {[%clk 0:00:24.7]} 33. b6
{[%clk 0:00:20.4]} 33... Bf2 {[%clk 0:00:24.2]} 34. Raa3 {[%clk 0:00:19.1]}
34... Be3 {[%clk 0:00:22.7]} 35. Qd1 {[%clk 0:00:19]} 35... Bxf4 {[%clk
0:00:20.7]} 36. Rcb3 {[%clk 0:00:13.9]} 36... Bxg2+ {[%clk 0:00:15.5]} 37. Kxg2
{[%clk 0:00:13.7]} 37... Qe4+ {[%clk 0:00:15.7]} 38. Kf2 {[%clk 0:00:10]} 38...
Be3+ {[%clk 0:00:14.6]} 39. Kg3 {[%clk 0:00:10.6]} 39... Qf4+ {[%clk 0:00:14.1]}
40. Kg2 {[%clk 0:00:11.3]} 40... Qf2+ {[%clk 0:00:14]} 41. Kh1 {[%clk
0:00:11.9]} 41... d2 {[%clk 0:00:12.8]} 42. Rxe3 {[%clk 0:00:12]} 42... Rd8
{[%clk 0:00:11.5]} 43. b7 {[%clk 0:00:12]} 43... h5 {[%clk 0:00:09.7]} 44. a6
{[%clk 0:00:12.3]} 44... h4 {[%clk 0:00:08.8]} 45. h3 {[%clk 0:00:11.4]} 45...
Qf4 {[%clk 0:00:03.5]} 46. a7 {[%clk 0:00:09.9]} 46... Qd4 {[%clk 0:00:02.8]}
47. b8=Q {[%clk 0:00:08.6]} 47... Qd5+ {[%clk 0:00:03.4]} 48. Kg1 {[%clk
0:00:09.1]} 48... Qd4 {[%clk 0:00:03.4]} 49. a8=Q {[%clk 0:00:08.7]} 1-0

[Event "Late-Titled-Tuesday-Blitz-January-16-2024"]
[Site "Chess.com"]
[Date "2024.01.16"]
[Round "6"]
[White "kai_nov"]
[Black "Arteler"]
[Result "1-0"]
[WhiteElo "2276"]
[BlackElo "2468"]
[TimeControl "180+1"]
[EndTime "15:04:22 PST"]
[Termination "kai_nov won by resignation"]

1. d4 {[%clk 0:02:40.8]} 1... d5 {[%clk 0:03:00.2]} 2. c4 {[%clk 0:02:40.4]}
2... c6 {[%clk 0:03:00.7]} 3. Nf3 {[%clk 0:02:39.8]} 3... Nf6 {[%clk 0:03:01.3]}
4. e3 {[%clk 0:02:40.1]} 4... a6 {[%clk 0:03:01.5]} 5. b3 {[%clk 0:02:36.1]}
5... Bf5 {[%clk 0:03:01.5]} 6. Nbd2 {[%clk 0:02:31.5]} 6... e6 {[%clk 0:03:01]}
7. Be2 {[%clk 0:02:31.2]} 7... Nbd7 {[%clk 0:03:01.1]} 8. Nh4 {[%clk 0:02:30.9]}
8... Be4 {[%clk 0:02:58.2]} 9. O-O {[%clk 0:02:29.6]} 9... Be7 {[%clk
0:02:54.8]} 10. Bb2 {[%clk 0:02:26.1]} 10... O-O {[%clk 0:02:52.9]} 11. Nxe4
{[%clk 0:02:22.4]} 11... Nxe4 {[%clk 0:02:50.3]} 12. Nf3 {[%clk 0:02:22.5]}
12... b5 {[%clk 0:02:50.8]} 13. Rc1 {[%clk 0:02:18.7]} 13... Qa5 {[%clk
0:02:39.4]} 14. Qc2 {[%clk 0:01:52.8]} 14... bxc4 {[%clk 0:02:35.9]} 15. bxc4
{[%clk 0:01:52.4]} 15... Rab8 {[%clk 0:02:35.7]} 16. Ba1 {[%clk 0:01:31.6]}
16... h6 {[%clk 0:02:12]} 17. Rb1 {[%clk 0:01:28.7]} 17... Bd6 {[%clk
0:02:04.9]} 18. Bd3 {[%clk 0:01:27.5]} 18... Ndf6 {[%clk 0:02:04.1]} 19. h3
{[%clk 0:01:23.7]} 19... Rfc8 {[%clk 0:01:56.7]} 20. c5 {[%clk 0:00:58.7]} 20...
Bf8 {[%clk 0:01:46.7]} 21. Ne5 {[%clk 0:00:58.2]} 21... Qc7 {[%clk 0:01:40.4]}
22. Bxa6 {[%clk 0:00:55.4]} 22... Rxb1 {[%clk 0:01:39.1]} 23. Rxb1 {[%clk
0:00:55.1]} 23... Re8 {[%clk 0:01:31.2]} 24. Rb7 {[%clk 0:00:42.9]} 24... Qa5
{[%clk 0:01:31.1]} 25. Bf1 {[%clk 0:00:20.7]} 25... Ra8 {[%clk 0:01:28.4]} 26.
Nxc6 {[%clk 0:00:17.3]} 26... Qxa2 {[%clk 0:01:27.6]} 27. Qxa2 {[%clk
0:00:17.5]} 27... Rxa2 {[%clk 0:01:28.5]} 28. Bb2 {[%clk 0:00:18]} 28... Nd2
{[%clk 0:01:02.2]} 29. Ne5 {[%clk 0:00:17.3]} 29... Nc4 {[%clk 0:00:55.6]} 30.
Nxc4 {[%clk 0:00:16.4]} 30... dxc4 {[%clk 0:00:56.5]} 31. Bxc4 {[%clk
0:00:16.5]} 31... Ra8 {[%clk 0:00:57.3]} 32. f3 {[%clk 0:00:14.2]} 32... g5
{[%clk 0:00:48.5]} 33. e4 {[%clk 0:00:14.1]} 33... Nh5 {[%clk 0:00:44.1]} 34. c6
{[%clk 0:00:13.9]} 34... Bd6 {[%clk 0:00:40]} 35. Kf2 {[%clk 0:00:13.7]} 35...
Nf4 {[%clk 0:00:39.4]} 36. Bb5 {[%clk 0:00:12]} 36... Ra2 {[%clk 0:00:36.6]} 37.
Be2 {[%clk 0:00:11]} 37... Ba3 {[%clk 0:00:34.7]} 38. c7 {[%clk 0:00:10.4]}
38... Bxb2 {[%clk 0:00:32.3]} 39. c8=Q+ {[%clk 0:00:10.4]} 39... Kg7 {[%clk
0:00:33.1]} 40. Rxb2 {[%clk 0:00:06.8]} 40... Rxb2 {[%clk 0:00:32.4]} 41. Qc4
{[%clk 0:00:05.8]} 41... h5 {[%clk 0:00:27.9]} 42. g3 {[%clk 0:00:06.1]} 42...
Nxe2 {[%clk 0:00:27.9]} 43. Qxe2 {[%clk 0:00:05.5]} 43... Rxe2+ {[%clk
0:00:28.2]} 44. Kxe2 {[%clk 0:00:06.4]} 44... Kg6 {[%clk 0:00:23.7]} 45. g4
{[%clk 0:00:06.6]} 45... hxg4 {[%clk 0:00:20.8]} 46. hxg4 {[%clk 0:00:07.5]}
46... Kf6 {[%clk 0:00:20.8]} 47. Ke3 {[%clk 0:00:07.7]} 47... Ke7 {[%clk
0:00:20.6]} 48. Kd3 {[%clk 0:00:07.9]} 48... Kd6 {[%clk 0:00:21.1]} 49. Kc4
{[%clk 0:00:08.4]} 49... Kc6 {[%clk 0:00:21.7]} 50. e5 {[%clk 0:00:08.1]} 50...
Kb6 {[%clk 0:00:20.4]} 51. d5 {[%clk 0:00:08.3]} 51... exd5+ {[%clk 0:00:17]}
52. Kxd5 {[%clk 0:00:08.3]} 52... Kc7 {[%clk 0:00:17.9]} 53. e6 {[%clk
0:00:08.8]} 53... fxe6+ {[%clk 0:00:18.8]} 54. Kxe6 {[%clk 0:00:09]} 1-0